[Event "GER-chW Blitz 2019"]
[Site "Magdeburg"]
[Date "2019.05.25"]
[Round "17.3"]
[White "Ries, Jutta"]
[Black "Silz, Elisa"]
[Result "1/2-1/2"]
[ECO "A02"]
[WhiteElo "2017"]
[BlackElo "1977"]
[Annotator "NA"]
[PlyCount "131"]
[EventDate "2019.05.25"]
[EventType "tourn"]
[EventCountry "GER"]
[SourceTitle "playchess.com"]
[Source "ChessBase"]
[SourceQuality "1"]
[TimeControl "180+2"]

1. f4 {[%emt 0:00:00]} Nf6 {[%emt 0:00:00]} 2. Nf3 {[%emt 0:00:00]} d5 {[%emt 0:00:00]} 3. b3 {[%emt 0:00:02]} g6 {[%emt 0:00:00]} 4. Bb2 {[%emt 0:00:01]} Bg7 {[%emt 0:00:01]} 5. e3 {[%emt 0:00:00]} O-O {[%emt 0:00:01]} 6. Be2 {[%emt 0:00:06]} c5 {[%emt 0:00:01]} 7. O-O {[%emt 0:00:02]} Nc6 {[%emt 0:00:01]} 8. Bb5 {[%emt 0:00:04]} Bd7 {[%emt 0:00:03]} 9. Qe2 {[%emt 0:00:08]} a6 {[%emt 0:00:01]} 10. Bxc6 {[%emt 0:00:01]} Bxc6 {[%emt 0:00:01]} 11. d3 {[%emt 0:00:02]} b5 {[%emt 0:00:04]} 12. Nbd2 {[%emt 0:00:02]} Qc7 {[%emt 0:00:11]} 13. Rae1 {[%emt 0:00:03]} Rfe8 {[%emt 0:00:01]} 14. g3 {[%emt 0:00:08]} Rad8 {[%emt 0:00:08]} 15. Be5 {[%emt 0:00:50]} Qb7 {[%emt 0:00:05]} 16. Bc3 {[%emt 0:00:08]} b4 {[%emt 0:00:02]} 17. Bb2 {[%emt 0:00:01]} e6 {[%emt 0:00:15]} 18. Ne5 {[%emt 0:00:01]} d4 {[%emt 0:00:16]} 19. Nxc6 {[%emt 0:00:04]} Qxc6 {[%emt 0:00:01]} 20. Nc4 {[%emt 0:00:09]} dxe3 {[%emt 0:00:11]} 21. Nxe3 {[%emt 0:00:16]} h5 {[%emt 0:00:07]} 22. Qf3 {[%emt 0:00:07]} Qc7 {[%emt 0:00:14]} 23. Be5 {[%emt 0:00:03]} Qd7 {[%emt 0:00:03]} 24. Nc4 {[%emt 0:00:02]} h4 {[%emt 0:00:16]} 25. g4 {[%emt 0:00:24]} Nd5 {[%emt 0:00:06]} 26. Bxg7 {[%emt 0:00:38]} Kxg7 {[%emt 0:00:01]} 27. g5 {[%emt 0:00:03]} Ne7 {[%emt 0:00:06]} 28. Ne5 {[%emt 0:00:04]} Qd4+ {[%emt 0:00:03]} 29. Qf2 {[%emt 0:00:02]} Nf5 {[%emt 0:00:02]} 30. Nc6 {[%emt 0:00:09]} Qxf2+ {[%emt 0:00:04]} 31. Kxf2 {[%emt 0:00:03]} Rd6 {[%emt 0:00:09]} 32. Ne5 {[%emt 0:00:03]} Nd4 {[%emt 0:00:07]} 33. Nc4 {[%emt 0:00:04]} Rd5 {[%emt 0:00:04]} 34. Ne3 {[%emt 0:00:02]} Rd7 {[%emt 0:00:04]} 35. Rd1 {[%emt 0:00:02]} Red8 {[%emt 0:00:03]} 36. Rd2 {[%emt 0:00:03]} a5 {[%emt 0:00:05]} 37. Ng2 {[%emt 0:00:01]} Nf5 {[%emt 0:00:03]} 38. Ne3 {[%emt 0:00:03]} Rd4 {[%emt 0:00:02]} 39. Ke2 {[%emt 0:00:07]} Nd6 {[%emt 0:00:05]} 40. Nc4 {[%emt 0:00:04]} Nb5 {[%emt 0:00:07]} 41. Ne5 {[%emt 0:00:02]} Nc3+ {[%emt 0:00:02]} 42. Ke3 {[%emt 0:00:03]} Nd5+ {[%emt 0:00:02]} 43. Ke2 {[%emt 0:00:02]} Nxf4+ {[%emt 0:00:02]} 44. Kd1 {[%emt 0:00:01]} Nd5 {[%emt 0:00:05]} 45. Rxf7+ {[%emt 0:00:01]} Kg8 {[%emt 0:00:01]} 46. Ra7 {[%emt 0:00:03]} Nc3+ {[%emt 0:00:06]} 47. Ke1 {[%emt 0:00:01]} Ne4 {[%emt 0:00:04]} 48. Re2 {[%emt 0:00:02]} Nxg5 {[%emt 0:00:03]} 49. Nxg6 {[%emt 0:00:01]} Nf3+ {[%emt 0:00:03]} 50. Kf2 {[%emt 0:00:01]} Ng5 {[%emt 0:00:05]} 51. Re5 {[%emt 0:00:02]} Nf7 {[%emt 0:00:04]} 52. Rh5 {[%emt 0:00:03]} Kg7 {[%emt 0:00:03]} 53. Ne5 {[%emt 0:00:02]} Rf4+ {[%emt 0:00:08]} 54. Ke3 {[%emt 0:00:01]} Rf6 {[%emt 0:00:04]} 55. Rg5+ {[%emt 0:00:02]} Kh6 {[%emt 0:00:04]} 56. Nxf7+ {[%emt 0:00:02]} Rxf7 {[%emt 0:00:01]} 57. Rxf7 {[%emt 0:00:01]} Kxg5 {[%emt 0:00:01]} 58. Re7 {[%emt 0:00:01]} Kf6 {[%emt 0:00:02]} 59. Rh7 {[%emt 0:00:01]} Kg5 {[%emt 0:00:01]} 60. Re7 {[%emt 0:00:01]} Kf6 {[%emt 0:00:03]} 61. Rc7 {[%emt 0:00:00]} Rd5 {[%emt 0:00:01]} 62. Rh7 {[%emt 0:00:03]} Kg5 {[%emt 0:00:03]} 63. Ra7 {[%emt 0:00:01]} Re5+ {[%emt 0:00:02]} 64. Kf3 {[%emt 0:00:01]} Rf5+ {[%emt 0:00:02]} 65. Ke3 {[%emt 0:00:01]} Re5+ {[%emt 0:00:02]} 66. Kf3 {[%emt 0:00:01]} 1/2-1/2

[Event "GER-chW Blitz 2019"]
[Site "Magdeburg"]
[Date "2019.05.25"]
[Round "17.4"]
[White "Kushka, Alena"]
[Black "Rath, Alina"]
[Result "0-1"]
[ECO "D34"]
[WhiteElo "2148"]
[BlackElo "2042"]
[Annotator "NA"]
[PlyCount "110"]
[EventDate "2019.05.25"]
[EventType "tourn"]
[EventCountry "GER"]
[SourceTitle "playchess.com"]
[Source "ChessBase"]
[SourceQuality "1"]
[TimeControl "180+2"]

1. d4 {[%emt 0:00:00]} d5 {[%emt 0:00:00]} 2. c4 {[%emt 0:00:01]} e6 {[%emt 0:00:00]} 3. Nc3 {[%emt 0:00:01]} c5 {[%emt 0:00:00]} 4. cxd5 {[%emt 0:00:05]} exd5 {[%emt 0:00:01]} 5. Nf3 {[%emt 0:00:01]} Nc6 {[%emt 0:00:00]} 6. g3 {[%emt 0:00:02]} Nf6 {[%emt 0:00:01]} 7. Bg2 {[%emt 0:00:01]} Be7 {[%emt 0:00:01]} 8. O-O {[%emt 0:00:02]} O-O {[%emt 0:00:02]} 9. Bg5 {[%emt 0:00:08]} c4 {[%emt 0:00:01]} 10. Ne5 {[%emt 0:00:10]} Be6 {[%emt 0:00:03]} 11. Nxc6 {[%emt 0:00:05]} bxc6 {[%emt 0:00:02]} 12. b3 {[%emt 0:00:15]} Qa5 {[%emt 0:00:04]} 13. Qc2 {[%emt 0:00:17]} Rad8 {[%emt 0:00:11]} 14. bxc4 {[%emt 0:00:05]} dxc4 {[%emt 0:00:01]} 15. Bxf6 {[%emt 0:00:32]} Bxf6 {[%emt 0:00:03]} 16. e3 {[%emt 0:00:02]} c5 {[%emt 0:00:07]} 17. Ne4 {[%emt 0:00:01]} cxd4 {[%emt 0:00:12]} 18. Nxf6+ {[%emt 0:00:03]} gxf6 {[%emt 0:00:01]} 19. exd4 {[%emt 0:00:04]} Rxd4 {[%emt 0:00:08]} 20. Rfe1 {[%emt 0:00:52]} Rfd8 {[%emt 0:00:44]} 21. Qe2 {[%emt 0:00:22]} c3 {[%emt 0:00:23]} 22. Qf3 {[%emt 0:00:16]} Kg7 {[%emt 0:00:19]} 23. Rac1 {[%emt 0:00:09]} c2 {[%emt 0:00:25]} 24. Qe3 {[%emt 0:00:08]} Rd1 {[%emt 0:00:10]} 25. Bf3 {[%emt 0:00:04]} Rxe1+ {[%emt 0:00:12]} 26. Rxe1 {[%emt 0:00:01]} Qd2 {[%emt 0:00:11]} 27. Be4 {[%emt 0:00:04]} Qxe3 {[%emt 0:00:03]} 28. fxe3 {[%emt 0:00:01]} Rc8 {[%emt 0:00:02]} 29. Rc1 {[%emt 0:00:01]} Bxa2 {[%emt 0:00:01]} 30. Rxc2 {[%emt 0:00:01]} Rxc2 31. Bxc2 {[%emt 0:00:01]} Bd5 {[%emt 0:00:02]} 32. Ba4 {[%emt 0:00:01]} h6 {[%emt 0:00:03]} 33. Kf2 {[%emt 0:00:01]} Kg6 {[%emt 0:00:00]} 34. h3 {[%emt 0:00:03]} Kf5 {[%emt 0:00:02]} 35. Bc2+ {[%emt 0:00:01]} Ke5 {[%emt 0:00:01]} 36. Ke2 {[%emt 0:00:00]} Kd6 {[%emt 0:00:01]} 37. Kd3 {[%emt 0:00:02]} Kc5 {[%emt 0:00:01]} 38. Kc3 {[%emt 0:00:01]} Be6 {[%emt 0:00:03]} 39. Ba4 {[%emt 0:00:02]} Bxh3 {[%emt 0:00:03]} 40. Bb3 {[%emt 0:00:01]} Be6 {[%emt 0:00:01]} 41. Bc2 {[%emt 0:00:01]} a5 {[%emt 0:00:03]} 42. e4 {[%emt 0:00:02]} Bd7 {[%emt 0:00:08]} 43. Bb3 {[%emt 0:00:01]} Be8 {[%emt 0:00:01]} 44. Bc2 {[%emt 0:00:02]} a4 {[%emt 0:00:00]} 45. Bb1 {[%emt 0:00:01]} a3 {[%emt 0:00:03]} 46. Kb3 {[%emt 0:00:01]} Kd4 {[%emt 0:00:01]} 47. Kxa3 {[%emt 0:00:02]} Bc6 {[%emt 0:00:01]} 48. Ba2 {[%emt 0:00:00]} Be8 {[%emt 0:00:03]} 49. Bb1 {[%emt 0:00:01]} Ke3 {[%emt 0:00:02]} 50. Kb4 {[%emt 0:00:02]} Kf3 {[%emt 0:00:01]} 51. Kc5 {[%emt 0:00:01]} Kxg3 {[%emt 0:00:02]} 52. Kd6 {[%emt 0:00:01]} h5 {[%emt 0:00:14]} 53. Ke7 {[%emt 0:00:02]} Bc6 {[%emt 0:00:02]} 54. Kxf7 {[%emt 0:00:03]} h4 {[%emt 0:00:00]} 55. e5 {[%emt 0:00:04]} fxe5 {[%emt 0:00:03]} 0-1

[Event "GER-chW Blitz 2019"]
[Site "Magdeburg"]
[Date "2019.05.25"]
[Round "17.5"]
[White "Schulze, Lara"]
[Black "Birkholz, Olga"]
[Result "1-0"]
[ECO "B90"]
[WhiteElo "2160"]
[BlackElo "2031"]
[Annotator "NA"]
[PlyCount "60"]
[EventDate "2019.05.25"]
[EventType "tourn"]
[EventCountry "GER"]
[SourceTitle "playchess.com"]
[Source "ChessBase"]
[SourceQuality "1"]
[TimeControl "180+2"]

1. e4 {[%emt 0:00:00]} c5 {[%emt 0:00:00]} 2. Nf3 {[%emt 0:00:00]} d6 {[%emt 0:00:00]} 3. d4 {[%emt 0:00:01]} cxd4 {[%emt 0:00:01]} 4. Nxd4 {[%emt 0:00:00]} Nf6 {[%emt 0:00:01]} 5. Nc3 {[%emt 0:00:01]} a6 {[%emt 0:00:01]} 6. Bc4 {[%emt 0:00:01]} e6 {[%emt 0:00:02]} 7. Bb3 {[%emt 0:00:01]} Be7 {[%emt 0:00:02]} 8. O-O {[%emt 0:00:03]} O-O {[%emt 0:00:01]} 9. Qf3 {[%emt 0:00:02]} Qc7 {[%emt 0:00:05]} 10. Qg3 {[%emt 0:00:09]} Kh8 {[%emt 0:00:10]} 11. a4 {[%emt 0:00:14]} Nc6 {[%emt 0:00:01]} 12. Be3 {[%emt 0:00:05]} Bd7 {[%emt 0:00:09]} 13. f4 {[%emt 0:00:10]} Rac8 {[%emt 0:00:04]} 14. Kh1 {[%emt 0:00:03]} Nb4 {[%emt 0:00:19]} 15. f5 {[%emt 0:00:56]} e5 {[%emt 0:00:16]} 16. Nf3 {[%emt 0:00:01]} Bc6 {[%emt 0:00:08]} 17. Ng5 {[%emt 0:00:12]} Bd8 {[%emt 0:00:11]} 18. a5 {[%emt 0:00:08]} h6 {[%emt 0:00:07]} 19. Bb6 {[%emt 0:00:42]} Qd7 {[%emt 0:00:06]} 20. Qh4 {[%emt 0:00:04]} Kg8 {[%emt 0:00:06]} 21. Bxd8 Rcxd8 {[%emt 0:00:01]} 22. Nf3 {[%emt 0:00:05]} Bb5 {[%emt 0:00:33]} 23. Rfd1 {[%emt 0:00:04]} Qc6 {[%emt 0:00:12]} 24. Nd5 {[%emt 0:00:09]} Nbxd5 {[%emt 0:00:11]} 25. exd5 {[%emt 0:00:01]} Qc8 {[%emt 0:00:11]} 26. c4 {[%emt 0:00:15]} Bd7 {[%emt 0:00:02]} 27. g4 {[%emt 0:00:00]} Ne4 {[%emt 0:00:21]} 28. Re1 {[%emt 0:00:13]} Nc5 29. Bc2 Be8 {[%emt 0:00:29]} 30. f6 {[%emt 0:00:03]} Bd7 {[%emt 0:00:00]} 1-0

[Event "GER-chW Blitz 2019"]
[Site "Magdeburg"]
[Date "2019.05.25"]
[Round "17.6"]
[White "Braje, Monika"]
[Black "Hofmann, Karina"]
[Result "1-0"]
[ECO "B00"]
[WhiteElo "1781"]
[BlackElo "1700"]
[Annotator "NA"]
[PlyCount "49"]
[EventDate "2019.05.25"]
[EventType "tourn"]
[EventCountry "GER"]
[SourceTitle "playchess.com"]
[Source "ChessBase"]
[SourceQuality "1"]
[TimeControl "180+2"]

1. e4 {[%emt 0:00:00]} b6 {[%emt 0:00:00]} 2. d4 {[%emt 0:00:01]} Bb7 {[%emt 0:00:00]} 3. Bd3 {[%emt 0:00:10]} g6 {[%emt 0:00:01]} 4. c3 {[%emt 0:00:02]} Bg7 {[%emt 0:00:01]} 5. Ne2 {[%emt 0:00:05]} Nf6 {[%emt 0:00:08]} 6. Ng3 {[%emt 0:00:03]} O-O {[%emt 0:00:04]} 7. O-O {[%emt 0:00:03]} c5 {[%emt 0:00:03]} 8. d5 {[%emt 0:00:05]} d6 {[%emt 0:00:05]} 9. c4 {[%emt 0:00:02]} Nbd7 {[%emt 0:00:02]} 10. f4 {[%emt 0:00:09]} a6 {[%emt 0:00:04]} 11. Nc3 {[%emt 0:00:03]} Nh5 {[%emt 0:00:15]} 12. Nxh5 {[%emt 0:00:08]} gxh5 {[%emt 0:00:02]} 13. Qxh5 {[%emt 0:00:05]} Bd4+ {[%emt 0:00:06]} 14. Kh1 {[%emt 0:00:01]} Kh8 {[%emt 0:00:05]} 15. e5 {[%emt 0:00:05]} f5 {[%emt 0:00:07]} 16. Bxf5 {[%emt 0:00:14]} Rxf5 {[%emt 0:00:22]} 17. Qxf5 {[%emt 0:00:01]} Bxc3 {[%emt 0:00:06]} 18. bxc3 {[%emt 0:00:03]} Qg8 {[%emt 0:00:03]} 19. exd6 {[%emt 0:00:25]} e6 {[%emt 0:00:20]} 20. Qxe6 {[%emt 0:00:06]} Nf8 {[%emt 0:00:09]} 21. Qe5+ {[%emt 0:00:06]} Qg7 {[%emt 0:00:02]} 22. Qxg7+ {[%emt 0:00:01]} Kxg7 {[%emt 0:00:01]} 23. Bd2 {[%emt 0:00:03]} Rd8 {[%emt 0:00:04]} 24. Rae1 {[%emt 0:00:04]} Rxd6 {[%emt 0:00:02]} 25. Re7+ {[%emt 0:00:01]} 1-0

[Event "GER-chW Blitz 2019"]
[Site "Magdeburg"]
[Date "2019.05.25"]
[Round "17.7"]
[White "Mader, Lena"]
[Black "Siegl, Melina"]
[Result "0-1"]
[ECO "A21"]
[WhiteElo "1839"]
[BlackElo "2029"]
[Annotator "NA"]
[PlyCount "64"]
[EventDate "2019.05.25"]
[EventType "tourn"]
[EventCountry "GER"]
[SourceTitle "playchess.com"]
[Source "ChessBase"]
[SourceQuality "1"]
[TimeControl "180+2"]

1. c4 {[%emt 0:00:00]} e5 {[%emt 0:00:00]} 2. Nc3 {[%emt 0:00:00]} d6 {[%emt 0:00:02]} 3. g3 {[%emt 0:00:04]} g6 {[%emt 0:00:01]} 4. Bg2 {[%emt 0:00:01]} Bg7 {[%emt 0:00:01]} 5. e3 {[%emt 0:00:01]} f5 {[%emt 0:00:02]} 6. d3 {[%emt 0:00:04]} Nf6 {[%emt 0:00:02]} 7. Nge2 {[%emt 0:00:00]} O-O {[%emt 0:00:03]} 8. O-O {[%emt 0:00:01]} c6 {[%emt 0:00:10]} 9. Bd2 {[%emt 0:00:02]} Na6 {[%emt 0:00:03]} 10. Rb1 {[%emt 0:00:06]} Nc7 {[%emt 0:00:02]} 11. b4 {[%emt 0:00:02]} d5 {[%emt 0:00:13]} 12. cxd5 {[%emt 0:00:28]} cxd5 {[%emt 0:00:04]} 13. a4 {[%emt 0:00:25]} d4 {[%emt 0:00:28]} 14. exd4 {[%emt 0:00:34]} exd4 {[%emt 0:00:02]} 15. Na2 {[%emt 0:00:07]} Nfd5 {[%emt 0:00:17]} 16. Nf4 {[%emt 0:00:09]} Rb8 {[%emt 0:00:19]} 17. Qb3 {[%emt 0:00:08]} Kh8 {[%emt 0:00:13]} 18. Nxd5 {[%emt 0:00:04]} Be6 {[%emt 0:00:03]} 19. Bf4 {[%emt 0:00:29]} Nxd5 {[%emt 0:00:31]} 20. Bxb8 {[%emt 0:00:16]} Nf4 {[%emt 0:00:17]} 21. Qd1 {[%emt 0:00:13]} Nxg2 {[%emt 0:00:05]} 22. Bf4 {[%emt 0:00:11]} Nxf4 {[%emt 0:00:04]} 23. gxf4 {[%emt 0:00:05]} Bxa2 {[%emt 0:00:01]} 24. Rb2 {[%emt 0:00:05]} Bd5 {[%emt 0:00:02]} 25. f3 {[%emt 0:00:02]} Qh4 {[%emt 0:00:01]} 26. Rg2 {[%emt 0:00:02]} Qxf4 {[%emt 0:00:02]} 27. Qe1 {[%emt 0:00:06]} Bc6 {[%emt 0:00:04]} 28. Qe7 {[%emt 0:00:02]} Re8 {[%emt 0:00:04]} 29. Qc5 {[%emt 0:00:05]} Qe3+ {[%emt 0:00:01]} 30. Kh1 {[%emt 0:00:00]} Qxd3 {[%emt 0:00:02]} 31. Rc1 {[%emt 0:00:05]} Qxf3 {[%emt 0:00:10]} 32. Rcg1 {[%emt 0:00:01]} Re1 {[%emt 0:00:05]} 0-1

[Event "GER-chW Blitz 2019"]
[Site "Magdeburg"]
[Date "2019.05.25"]
[Round "17.8"]
[White "Zimmer, Elke"]
[Black "Muetsch, Annmarie"]
[Result "0-1"]
[ECO "B24"]
[WhiteElo "1926"]
[BlackElo "2266"]
[Annotator "NA"]
[PlyCount "48"]
[EventDate "2019.05.25"]
[EventType "tourn"]
[EventCountry "GER"]
[SourceTitle "playchess.com"]
[Source "ChessBase"]
[SourceQuality "1"]
[TimeControl "180+2"]

1. e4 {[%emt 0:00:00]} c5 {[%emt 0:00:00]} 2. Nc3 {[%emt 0:00:00]} Nc6 {[%emt 0:00:00]} 3. g3 {[%emt 0:00:00]} g6 {[%emt 0:00:02]} 4. Bg2 {[%emt 0:00:01]} Bg7 5. d3 e6 {[%emt 0:00:04]} 6. Nf3 {[%emt 0:00:02]} Nge7 {[%emt 0:00:01]} 7. Be3 {[%emt 0:00:01]} b6 {[%emt 0:00:01]} 8. Qd2 {[%emt 0:00:01]} d5 {[%emt 0:00:04]} 9. exd5 {[%emt 0:00:05]} exd5 {[%emt 0:00:08]} 10. Bh6 {[%emt 0:00:03]} O-O {[%emt 0:00:12]} 11. Bxg7 {[%emt 0:00:01]} Kxg7 {[%emt 0:00:01]} 12. O-O {[%emt 0:00:03]} d4 {[%emt 0:00:06]} 13. Ne4 {[%emt 0:00:01]} Nd5 {[%emt 0:00:10]} 14. h4 {[%emt 0:00:10]} h6 {[%emt 0:00:17]} 15. Rae1 {[%emt 0:00:05]} f5 {[%emt 0:00:06]} 16. c4 {[%emt 0:01:03]} fxe4 {[%emt 0:00:18]} 17. dxe4 {[%emt 0:00:18]} Nde7 {[%emt 0:00:09]} 18. e5 {[%emt 0:00:01]} Be6 {[%emt 0:00:07]} 19. b3 {[%emt 0:00:01]} Qd7 20. h5 {[%emt 0:00:12]} Bg4 {[%emt 0:00:21]} 21. e6 {[%emt 0:00:07]} Qd6 {[%emt 0:00:08]} 22. Ne5 {[%emt 0:00:27]} Nxe5 {[%emt 0:00:20]} 23. Bxa8 {[%emt 0:00:01]} Rxa8 {[%emt 0:00:02]} 24. Re4 {[%emt 0:00:07]} Nf3+ {[%emt 0:00:02]} 0-1

[Event "GER-chW Blitz 2019"]
[Site "Magdeburg"]
[Date "2019.05.25"]
[Round "17.9"]
[White "Kopylov, Luba"]
[Black "Michna, Marta"]
[Result "0-1"]
[ECO "A53"]
[WhiteElo "2078"]
[BlackElo "2355"]
[Annotator "NA"]
[PlyCount "102"]
[EventDate "2019.05.25"]
[EventType "tourn"]
[EventCountry "GER"]
[SourceTitle "playchess.com"]
[Source "ChessBase"]
[SourceQuality "1"]
[TimeControl "180+2"]

1. d4 {[%emt 0:00:00]} Nf6 {[%emt 0:00:00]} 2. c4 {[%emt 0:00:01]} d6 {[%emt 0:00:00]} 3. Nc3 {[%emt 0:00:01]} Nbd7 {[%emt 0:00:00]} 4. e4 e5 5. Nge2 {[%emt 0:00:05]} c6 {[%emt 0:00:06]} 6. f3 {[%emt 0:00:05]} a5 {[%emt 0:00:01]} 7. Be3 {[%emt 0:00:02]} Be7 {[%emt 0:00:01]} 8. Qd2 {[%emt 0:00:03]} a4 {[%emt 0:00:02]} 9. g4 {[%emt 0:00:15]} Qa5 {[%emt 0:00:07]} 10. Ng3 {[%emt 0:00:12]} exd4 {[%emt 0:00:02]} 11. Bxd4 {[%emt 0:00:02]} Ne5 {[%emt 0:00:02]} 12. Be2 {[%emt 0:00:03]} g6 {[%emt 0:00:44]} 13. h4 {[%emt 0:00:09]} h6 {[%emt 0:00:13]} 14. O-O-O {[%emt 0:00:08]} c5 {[%emt 0:00:33]} 15. Be3 {[%emt 0:00:04]} Be6 {[%emt 0:00:05]} 16. Bxh6 {[%emt 0:00:29]} a3 {[%emt 0:00:07]} 17. b3 {[%emt 0:00:04]} Rxh6 {[%emt 0:00:10]} 18. g5 {[%emt 0:00:01]} Rh8 {[%emt 0:00:03]} 19. gxf6 {[%emt 0:00:02]} Bxf6 {[%emt 0:00:00]} 20. Nd5 {[%emt 0:00:14]} Qxd2+ {[%emt 0:00:18]} 21. Rxd2 {[%emt 0:00:01]} Bxd5 {[%emt 0:00:06]} 22. exd5 {[%emt 0:00:06]} Rxh4 {[%emt 0:00:05]} 23. Rxh4 {[%emt 0:00:14]} Bxh4 {[%emt 0:00:01]} 24. Ne4 {[%emt 0:00:07]} Be7 {[%emt 0:00:07]} 25. f4 {[%emt 0:00:11]} Nd7 {[%emt 0:00:00]} 26. Bf3 {[%emt 0:00:09]} f5 {[%emt 0:00:03]} 27. Ng5 {[%emt 0:00:12]} Bxg5 {[%emt 0:00:02]} 28. fxg5 {[%emt 0:00:01]} O-O-O {[%emt 0:00:03]} 29. Re2 {[%emt 0:00:03]} Ne5 {[%emt 0:00:01]} 30. Bg2 {[%emt 0:00:11]} Rh8 {[%emt 0:00:01]} 31. Kd2 {[%emt 0:00:04]} Rh5 {[%emt 0:00:02]} 32. Ke3 {[%emt 0:00:15]} Rxg5 {[%emt 0:00:03]} 33. Kf4 {[%emt 0:00:05]} Rg4+ {[%emt 0:00:03]} 34. Ke3 {[%emt 0:00:01]} Rh4 {[%emt 0:00:01]} 35. Kd2 {[%emt 0:00:10]} Kd7 {[%emt 0:00:03]} 36. Kc2 {[%emt 0:00:03]} b6 {[%emt 0:00:14]} 37. b4 {[%emt 0:00:02]} Rxc4+ {[%emt 0:00:02]} 38. Kb3 {[%emt 0:00:01]} Rxb4+ {[%emt 0:00:01]} 39. Kxa3 {[%emt 0:00:01]} Rh4 {[%emt 0:00:05]} 40. Rb2 {[%emt 0:00:02]} Kc7 {[%emt 0:00:01]} 41. Bf1 {[%emt 0:00:01]} g5 {[%emt 0:00:05]} 42. Bb5 {[%emt 0:00:04]} Nc4+ {[%emt 0:00:03]} 43. Bxc4 {[%emt 0:00:02]} Rxc4 {[%emt 0:00:01]} 44. Rg2 {[%emt 0:00:04]} g4 {[%emt 0:00:02]} 45. Kb3 {[%emt 0:00:01]} Rd4 {[%emt 0:00:02]} 46. Rf2 {[%emt 0:00:02]} Rxd5 {[%emt 0:00:01]} 47. Kc4 {[%emt 0:00:02]} Re5 {[%emt 0:00:00]} 48. a4 {[%emt 0:00:01]} Kc6 {[%emt 0:00:03]} 49. Kc3 {[%emt 0:00:02]} g3 {[%emt 0:00:05]} 50. Rg2 {[%emt 0:00:01]} Re3+ {[%emt 0:00:01]} 51. Kd2 {[%emt 0:00:01]} f4 {[%emt 0:00:00]} 0-1

[Event "GER-chW Blitz 2019"]
[Site "Magdeburg"]
[Date "2019.05.25"]
[Round "17.10"]
[White "Gheng, Simona"]
[Black "Osmanodja, Filiz"]
[Result "0-1"]
[ECO "B20"]
[WhiteElo "1991"]
[BlackElo "2260"]
[Annotator "NA"]
[PlyCount "88"]
[EventDate "2019.05.25"]
[EventType "tourn"]
[EventCountry "GER"]
[SourceTitle "playchess.com"]
[Source "ChessBase"]
[SourceQuality "1"]
[TimeControl "180+2"]

1. e4 {[%emt 0:00:00]} c5 {[%emt 0:00:00]} 2. c4 {[%emt 0:00:01]} Nc6 {[%emt 0:00:00]} 3. Nc3 {[%emt 0:00:01]} g6 {[%emt 0:00:01]} 4. g3 {[%emt 0:00:01]} Bg7 {[%emt 0:00:00]} 5. Bg2 e6 6. Nge2 Nge7 {[%emt 0:00:00]} 7. O-O {[%emt 0:00:04]} O-O 8. d3 {[%emt 0:00:01]} d6 {[%emt 0:00:07]} 9. a3 {[%emt 0:00:01]} a6 {[%emt 0:00:01]} 10. Rb1 {[%emt 0:00:01]} Rb8 {[%emt 0:00:02]} 11. b4 {[%emt 0:00:01]} Nd4 {[%emt 0:00:09]} 12. Nxd4 {[%emt 0:00:04]} cxd4 {[%emt 0:00:06]} 13. Ne2 {[%emt 0:00:01]} b5 {[%emt 0:00:02]} 14. f4 {[%emt 0:00:05]} f5 {[%emt 0:00:34]} 15. Bb2 {[%emt 0:00:13]} fxe4 {[%emt 0:00:36]} 16. Bxe4 {[%emt 0:00:13]} d5 {[%emt 0:00:12]} 17. cxd5 {[%emt 0:00:06]} exd5 {[%emt 0:00:07]} 18. Bg2 {[%emt 0:00:04]} Nf5 {[%emt 0:00:09]} 19. Qd2 {[%emt 0:00:17]} Re8 {[%emt 0:00:14]} 20. Rfe1 {[%emt 0:00:12]} Bb7 {[%emt 0:00:25]} 21. Bc1 {[%emt 0:00:22]} Ne3 {[%emt 0:00:06]} 22. Qa2 {[%emt 0:00:05]} Rc8 {[%emt 0:00:09]} 23. Bxe3 {[%emt 0:00:26]} dxe3 {[%emt 0:00:01]} 24. Rbc1 {[%emt 0:00:02]} Qd7 {[%emt 0:00:10]} 25. d4 {[%emt 0:00:13]} Kh8 {[%emt 0:00:06]} 26. Qb3 {[%emt 0:00:05]} Qg4 {[%emt 0:00:09]} 27. Rxc8 {[%emt 0:00:17]} Rxc8 {[%emt 0:00:13]} 28. Qxe3 {[%emt 0:00:01]} Bc6 {[%emt 0:00:06]} 29. h3 {[%emt 0:00:11]} Qf5 {[%emt 0:00:02]} 30. g4 {[%emt 0:00:02]} Qd7 {[%emt 0:00:03]} 31. Kh2 {[%emt 0:00:10]} Re8 {[%emt 0:00:01]} 32. Qd2 {[%emt 0:00:06]} Qd6 {[%emt 0:00:01]} 33. Kg1 {[%emt 0:00:20]} a5 {[%emt 0:00:01]} 34. Kf1 {[%emt 0:00:03]} axb4 {[%emt 0:00:01]} 35. axb4 {[%emt 0:00:00]} Bf8 {[%emt 0:00:03]} 36. Ng3 {[%emt 0:00:08]} Rxe1+ {[%emt 0:00:03]} 37. Qxe1 {[%emt 0:00:01]} Qxf4+ {[%emt 0:00:00]} 38. Qf2 {[%emt 0:00:02]} Qxf2+ {[%emt 0:00:00]} 39. Kxf2 {[%emt 0:00:00]} Bxb4 {[%emt 0:00:00]} 40. Ke3 {[%emt 0:00:02]} Be1 {[%emt 0:00:00]} 41. Ne2 {[%emt 0:00:01]} b4 {[%emt 0:00:00]} 42. Nf4 {[%emt 0:00:02]} b3 {[%emt 0:00:00]} 43. Kd3 {[%emt 0:00:01]} Bb5+ {[%emt 0:00:00]} 44. Ke3 {[%emt 0:00:02]} b2 {[%emt 0:00:00]} 0-1